fUST/lending_fUST_20241225
["ID","MTS","AMOUNT","RATE_DAILY","PERIOD"]
[346619537,1735128443743,-500.0,0.00010884,2]
[346619538,1735128443765,-500.0,0.00010884,2]
[346619539,1735128443788,-500.0,0.00010884,2]
[346619540,1735128443811,-500.0,0.00010884,2]
[346619541,1735128443833,-389.23734998,0.00010884,2]
[346619542,1735128443855,-500.0,0.00010884,2]
[346619543,1735128443877,-500.0,0.00010884,2]
[346619544,1735128443900,-1926.36,0.00010884,2]
[346619545,1735128443923,-1042.62,0.00010884,2]
[346619546,1735128443948,-500.0,0.00010884,2]
[346619547,1735128443970,-564.64,0.00010884,2]
[346619548,1735128443992,-500.0,0.00010884,2]
[346619549,1735128444013,-500.0,0.00010884,2]
[346619550,1735128444036,-288.65170366,0.00010884,2]
[346619553,1735128558127,-189.99549884,0.00010774,2]
[346619569,1735128634200,-118.45066071,0.00010774,2]
[346619570,1735128634211,-300.0,0.00010882,2]
[346619571,1735128634223,-300.0,0.00010882,2]
[346619572,1735128634235,-1803.2,0.00010883,2]
[346619573,1735128634247,-280.87046947,0.00010883,2]
[346619574,1735128634258,-1846.09,0.00010883,2]
[346619575,1735128634269,-782.37755888,0.00010883,2]
[346619576,1735128634321,-122.22244112,0.00010883,2]
[346619577,1735128634334,-999.18,0.00010883,2]
[346619578,1735128634346,-500.0,0.00010883,2]
[346619579,1735128634357,-500.0,0.00010883,2]
[346619580,1735128634368,-982.7,0.00010883,2]
[346619581,1735128634379,-500.0,0.00010883,2]
[346619582,1735128634389,-500.0,0.00010883,2]
[346619583,1735128634400,-204.33017487,0.00010883,2]
[346619584,1735128634412,-293.7718347,0.00010883,2]
[346619618,1735128638846,-1.89799043,0.00010883,2]
[346619619,1735128638855,-522.16,0.00010883,2]
[346619620,1735128638865,-500.0,0.00010883,2]
[346619621,1735128638874,-1118.96,0.00010883,2]
[346619622,1735128638884,-440.03,0.00010883,2]
[346619623,1735128638893,-500.0,0.00010883,2]
[346619624,1735128638902,-544.43,0.00010883,2]
[346619625,1735128638911,-1357.6293117,0.00010884,2]
[346619626,1735128638923,-2713.4806883,0.00010884,2]
[346619627,1735128638932,-500.0,0.00010884,2]
[346619628,1735128638941,-500.0,0.00010884,2]
[346619629,1735128638951,-500.0,0.00010884,2]
[346619630,1735128638960,-500.0,0.00010884,2]
[346619631,1735128638969,-500.0,0.00010884,2]
[346619632,1735128638979,-500.0,0.00010884,2]
[346619633,1735128638991,-500.0,0.00010884,2]
[346619634,1735128639000,-811.99,0.00010884,2]
[346619635,1735128639009,-564.27,0.00010884,2]
[346619636,1735128639019,-832.94,0.00010884,2]
[346619637,1735128639028,-616.86,0.00010884,2]
[346619638,1735128639037,-646.84,0.00010884,2]
[346619639,1735128639047,-420.71,0.00010884,2]
[346619640,1735128639056,-500.0,0.00010884,2]
[346619641,1735128639066,-500.0,0.00010884,2]
[346619642,1735128639075,-500.0,0.00010884,2]
[346619643,1735128639084,-500.0,0.00010884,2]
[346619644,1735128639093,-500.0,0.00010884,2]
[346619645,1735128639103,-500.0,0.00010884,2]
[346619646,1735128639112,-500.0,0.00010884,2]
[346619647,1735128639121,-500.0,0.00010884,2]
[346619648,1735128639131,-4337.84,0.00010884,2]
[346619649,1735128639141,-500.0,0.00010884,2]
[346619650,1735128639150,-500.0,0.00010884,2]
[346619651,1735128639160,-508.14,0.00010884,2]
[346619652,1735128639169,-16075.67,0.00010884,2]
[346619653,1735128639179,-385.48397775,0.00010884,2]
[346619654,1735128639193,-413.15183951,0.00010884,2]
[346619655,1735128639202,-596.53815547,0.00010885,2]
[346619656,1735128639212,-500.0,0.00010885,2]
[346619657,1735128639222,-500.0,0.00010885,2]
[346619658,1735128639232,-500.0,0.00010885,2]
[346619659,1735128639243,-500.0,0.00010885,2]
[346619660,1735128639253,-500.0,0.00010885,2]
[346619661,1735128639264,-500.0,0.00010885,2]
[346619662,1735128639274,-500.0,0.00010885,2]
[346619663,1735128639284,-500.0,0.00010885,2]
[346619664,1735128639293,-500.0,0.00010885,2]
[346619665,1735128639302,-513.92,0.00010885,2]
[346619666,1735128639312,-500.0,0.00010885,2]
[346619667,1735128639321,-500.0,0.00010885,2]
[346619668,1735128639331,-500.0,0.00010885,2]
[346619669,1735128639340,-500.0,0.00010885,2]
[346619670,1735128639350,-676.31,0.00010885,2]
[346619671,1735128639359,-500.0,0.00010885,2]
[346619672,1735128639369,-500.0,0.00010885,2]
[346619673,1735128639378,-500.0,0.00010885,2]
[346619674,1735128639387,-500.0,0.00010885,2]
[346619675,1735128639397,-500.0,0.00010885,2]
[346619676,1735128639406,-591.99,0.00010885,2]
[346619677,1735128639416,-500.0,0.00010885,2]
[346619678,1735128639425,-550.34,0.00010885,2]
[346619679,1735128639435,-781.97,0.00010885,2]
[346619680,1735128639445,-150.26331925,0.00010885,2]
[346619681,1735128639454,-500.0,0.00010885,2]
[346619682,1735128639464,-500.0,0.00010885,2]
[346619683,1735128639473,-500.0,0.00010885,2]
[346619684,1735128639485,-500.0,0.00010885,2]
[346619685,1735128639494,-500.0,0.00010885,2]
[346619686,1735128639503,-258.78582848,0.00010886,2]
[346619687,1735128639512,-500.0,0.00010886,2]
[346619688,1735128639522,-368.692,0.00011095,2]
[346619689,1735128639532,-10426.0814725,0.00011142,2]
[346619690,1735128639541,-500.0,0.00011157,2]
[346619691,1735128639551,-4656.92,0.00011157,2]
[346619692,1735128639560,-1803.2,0.00011157,2]
[346619693,1735128639570,-1846.09,0.00011157,2]
[346619694,1735128639579,-904.6,0.00011157,2]
[346619696,1735128639588,-999.18,0.00011157,2]
[346619697,1735128639597,-500.0,0.00011157,2]
[346619698,1735128639607,-500.0,0.00011157,2]
[346619699,1735128639616,-982.7,0.00011157,2]
[346619700,1735128639625,-500.0,0.00011157,2]
[346619702,1735128639634,-500.0,0.00011157,2]
[346619703,1735128639643,-500.0,0.00011157,2]
[346619704,1735128639653,-522.16,0.00011157,2]
[346619705,1735128639662,-500.0,0.00011157,2]
[346619706,1735128639671,-1118.96,0.00011157,2]
[346619707,1735128639681,-500.0,0.00011157,2]
[346619708,1735128639691,-544.43,0.00011157,2]
[346619709,1735128639700,-452.0020794,0.00011158,2]
[346619710,1735128639710,-500.0,0.00011158,2]
[346619711,1735128639719,-374.91659871,0.00011158,2]
[346619714,1735128639734,-125.08340129,0.00011158,2]
[346619715,1735128639743,-619.93,0.00011158,2]
[346619716,1735128639752,-500.0,0.00011158,2]
[346619717,1735128639761,-500.0,0.00011158,2]
[346619718,1735128639771,-500.0,0.00011158,2]
[346619719,1735128639780,-500.0,0.00011158,2]
[346619720,1735128639789,-500.0,0.00011158,2]
[346619721,1735128639798,-500.0,0.00011158,2]
[346619722,1735128639807,-500.0,0.00011158,2]
[346619723,1735128639816,-500.0,0.00011158,2]
[346619724,1735128639825,-500.0,0.00011158,2]
[346619725,1735128639835,-500.0,0.00011158,2]
[346619726,1735128639844,-500.0,0.00011158,2]
[346619728,1735128639853,-4071.11,0.00011158,2]
[346619730,1735128639862,-500.0,0.00011158,2]
[346619731,1735128639872,-500.0,0.00011158,2]
[346619732,1735128639882,-500.0,0.00011158,2]
[346619733,1735128639891,-811.99,0.00011158,2]
[346619734,1735128639900,-286.91064351,0.00011158,2]
[346619735,1735128639912,-213.08935649,0.00011158,2]
[346619736,1735128639922,-205.86588039,0.00011158,2]
[346619737,1735128639933,-294.13411961,0.00011158,2]
[346619738,1735128639943,-564.27,0.00011158,2]
[346619739,1735128639953,-832.94,0.00011158,2]
[346619740,1735128639962,-616.86,0.00011158,2]
[346619741,1735128639971,-500.0,0.00011158,2]
[346619742,1735128639980,-500.0,0.00011158,2]
[346619743,1735128639990,-500.0,0.00011158,2]
[346619744,1735128639999,-500.0,0.00011158,2]
[346619745,1735128640009,-500.0,0.00011158,2]
[346619746,1735128640018,-500.0,0.00011158,2]
[346619747,1735128640027,-4337.84,0.00011158,2]
[346619748,1735128640036,-500.0,0.00011158,2]
[346619749,1735128640046,-500.0,0.00011158,2]
[346619750,1735128640055,-508.14,0.00011158,2]
[346619751,1735128640064,-16075.67,0.00011158,2]
[346619752,1735128640073,-500.0,0.00011159,2]
[346619753,1735128640083,-500.0,0.00011159,2]
[346619754,1735128640092,-500.0,0.00011159,2]
[346619755,1735128640101,-339.25850638,0.00011159,2]
[346619756,1735128640110,-500.0,0.00011159,2]
[346619758,1735128640119,-513.92,0.00011159,2]
[346619759,1735128640128,-500.0,0.00011159,2]
[346619760,1735128640138,-500.0,0.00011159,2]
[346619761,1735128640147,-676.31,0.00011159,2]
[346619762,1735128640156,-500.0,0.00011159,2]
[346619763,1735128640165,-347.88697224,0.00011159,2]
[346619764,1735128640176,-500.0,0.00011159,2]
[346619765,1735128640185,-591.99,0.00011159,2]
[346619766,1735128640198,-500.0,0.00011159,2]
[346619767,1735128640207,-781.97,0.00011159,2]
[346619769,1735128640216,-500.0,0.00011159,2]
[346619770,1735128640225,-500.0,0.00011159,2]
[346619772,1735128640238,-500.0,0.00011159,2]
[346619775,1735128640247,-500.0,0.00011217,2]
[346619777,1735128640257,-500.0,0.00011217,2]
[346619779,1735128640268,-291.97,0.00011217,2]
[346619781,1735128640279,-2218.85078979,0.00011218,2]
[346619782,1735128640288,-5926.14345586,0.00011218,2]
[346619785,1735128640300,-54316.01928435,0.00011218,2]
[346620093,1735128643352,-744.33,0.00010883,2]
[346620095,1735128643363,-500.0,0.00010884,2]
[346620097,1735128643373,-744.33,0.00011157,2]
[346620099,1735128643383,-500.0,0.00011158,2]
[346620102,1735128643393,-2203.41133513,0.00011218,2]
[346624575,1735128702573,10000.0,0.000207,90]
[346624576,1735128709310,10000.0,0.000207,90]
[346624577,1735128717654,7153.66,0.000207,90]
[346624578,1735128750933,10000.0,0.000207,90]
[346624579,1735128758107,10000.0,0.000207,90]
[346624580,1735128767657,7299.45,0.000207,90]
[346624611,1735129243925,1222.55607227,0.0001819,120]
[346624612,1735129386621,24900.0,9.887e-05,2]
[346624616,1735129618866,163.6746467,9.887e-05,2]
[346624617,1735129631126,-326.5591481,0.00010234,2]
[346624618,1735129631149,-640.439,0.0001066,2]
[346624619,1735129631174,-300.0,0.0001088,2]
[346624620,1735129631197,-900.81,0.00010881,2]
[346624621,1735129631221,-500.0,0.00010881,2]
[346624622,1735129631244,-66.55312573,0.00010881,2]
[346624623,1735129640321,15986.36217808,0.00018275,120]
[346624626,1735129766111,-300.0,0.0001088,2]
[346624627,1735129766133,-300.0,0.0001088,2]
[346624628,1735129766156,-433.44687427,0.00010881,2]
[346624629,1735129766178,-4268.84,0.00010881,2]
[346624630,1735129766201,-1652.94,0.00010881,2]
[346624631,1735129766224,-1692.25,0.00010881,2]
[346624632,1735129766247,-915.92,0.00010881,2]
[346624633,1735129766269,-829.21,0.00010881,2]
[346624634,1735129766292,-500.76203414,0.00010881,2]
[346624635,1735129766312,-256.31090834,0.00010881,2]
[346624636,1735129766334,-500.0,0.00010881,2]
[346624637,1735129766357,-500.0,0.00010881,2]
[346624638,1735129766381,-500.0,0.00010881,2]
[346624639,1735129766403,-507.22424755,0.00010881,2]
[346624640,1735129766424,-500.0,0.00010881,2]
[346624641,1735129766447,-500.0,0.00010881,2]
[346624642,1735129766468,-305.26460542,0.00010881,2]
[346624685,1735129832310,-863.28,0.0001088,2]
[346624688,1735129832320,-300.0,0.0001088,2]
[346624690,1735129832329,-500.0,0.0001088,2]
[346624692,1735129832338,-300.0,0.0001088,2]
[346624693,1735129832347,-500.0,0.00010881,2]
[346624695,1735129832356,-500.0,0.00010881,2]
[346624696,1735129832366,-500.0,0.00010881,2]
[346624697,1735129832375,-500.0,0.00010881,2]
[346624698,1735129832384,-500.0,0.00010881,2]
[346624699,1735129832394,-1025.71,0.00010881,2]
[346624701,1735129832403,-500.0,0.00010881,2]
[346624703,1735129832413,-194.73539458,0.00010881,2]
[346624705,1735129832422,-500.0,0.00010881,2]
[346624707,1735129832431,-500.0,0.00010881,2]
[346624709,1735129832441,-500.0,0.00010881,2]
[346624711,1735129832450,-500.0,0.00010881,2]
[346624713,1735129832460,-324.79548526,0.00010881,2]
[346624715,1735129832469,-500.0,0.00010881,2]
[346624717,1735129832478,-500.0,0.00010881,2]
[346624719,1735129832487,-500.0,0.00010881,2]
[346624721,1735129832498,-600.0,0.00010881,2]
[346624723,1735129832507,-500.0,0.00010881,2]
[346624724,1735129832517,-500.0,0.00010881,2]
[346624727,1735129832527,-500.0,0.00010881,2]
[346624729,1735129832537,-500.0,0.00010881,2]
[346624731,1735129832546,-500.0,0.00010881,2]
[346624732,1735129832558,-500.0,0.00010881,2]
[346624734,1735129832568,-500.0,0.00010881,2]
[346624737,1735129832582,-500.0,0.00010881,2]
[346624739,1735129832593,-500.0,0.00010881,2]
[346624741,1735129832603,-341.5,0.00010881,2]
[346624743,1735129832612,-500.0,0.00010881,2]
[346624745,1735129832622,-500.0,0.00010881,2]
[346624747,1735129832631,-500.0,0.00010881,2]
[346624748,1735129832641,-500.0,0.00010881,2]
[346624751,1735129832651,-500.0,0.00010881,2]
[346624753,1735129832660,-500.0,0.00010881,2]
[346624754,1735129832670,-500.0,0.00010881,2]
[346624756,1735129832679,-500.0,0.00010881,2]
[346624758,1735129832689,-500.0,0.00010881,2]
[346624761,1735129832699,-500.0,0.00010881,2]
[346624763,1735129832708,-500.0,0.00010881,2]
[346624765,1735129832718,-500.0,0.00010881,2]
[346624767,1735129832727,-500.0,0.00010881,2]
[346624769,1735129832737,-500.0,0.00010881,2]
[346624771,1735129832750,-500.0,0.00010881,2]
[346624773,1735129832759,-500.0,0.00010881,2]
[346624774,1735129832769,-500.0,0.00010881,2]
[346624776,1735129832778,-500.0,0.00010881,2]
[346624778,1735129832787,-500.0,0.00010881,2]
[346624780,1735129832796,-500.0,0.00010881,2]
[346624782,1735129832805,-500.0,0.00010881,2]
[346624784,1735129832815,-500.0,0.00010881,2]
[346624786,1735129832824,-500.0,0.00010881,2]
[346624788,1735129832833,-500.0,0.00010881,2]
[346624790,1735129832843,-235.8571425,0.00010881,2]
[346624792,1735129832852,-500.0,0.00010881,2]
[346624794,1735129832861,-500.0,0.00010881,2]
[346624796,1735129832871,-500.0,0.00010881,2]
[346624798,1735129832880,-500.0,0.00010882,2]
[346624800,1735129832889,-500.0,0.00010882,2]
[346624802,1735129832898,-500.0,0.00010882,2]
[346624804,1735129832907,-568.27,0.00010882,2]
[346624806,1735129832918,-500.0,0.00010882,2]
[346624808,1735129832928,-500.0,0.00010882,2]
[346624810,1735129832938,-500.0,0.00010882,2]
[346624812,1735129832947,-500.0,0.00010882,2]
[346624814,1735129832957,-500.0,0.00010882,2]
[346624816,1735129832967,-500.0,0.00010882,2]
[346624818,1735129832977,-500.0,0.00010882,2]
[346624820,1735129832986,-500.0,0.00010882,2]
[346624822,1735129832996,-500.0,0.00010882,2]
[346624824,1735129833007,-500.0,0.00010882,2]
[346624826,1735129833016,-500.0,0.00010882,2]
[346624828,1735129833026,-682.3,0.00010882,2]
[346624830,1735129833036,-500.0,0.00010882,2]
[346624832,1735129833045,-500.0,0.00010882,2]
[346624834,1735129833055,-763.53,0.00010882,2]
[346624836,1735129833065,-500.0,0.00010882,2]
[346624838,1735129833075,-3731.85,0.00010882,2]
[346624840,1735129833085,-565.45,0.00010882,2]
[346624842,1735129833095,-75.89301958,0.00010882,2]
[346624975,1735129838236,-543.05476429,0.0001088,2]
[346624976,1735129838247,-424.10698042,0.00010882,2]
[346624977,1735129838256,-517.25,0.00010882,2]
[346624978,1735129838265,-67.17450542,0.00010882,2]
[346624985,1735129838325,-432.82549458,0.00010882,2]
[346624987,1735129838334,-480.44226259,0.00010882,2]
[346625311,1735129843344,-19.55773741,0.00010882,2]
[346625312,1735129843353,-500.0,0.00010882,2]
[346625313,1735129843362,-500.0,0.00010882,2]
[346625314,1735129843372,-521.73122712,0.00010882,2]
[346625315,1735129843381,-416.76012679,0.00010882,2]
[346625316,1735129843390,-500.0,0.00010882,2]
[346625317,1735129843400,-500.0,0.00010882,2]
[346625319,1735129843409,-500.0,0.00010882,2]
[346625321,1735129843418,-14736.03,0.00010882,2]
[346625322,1735129843427,-3976.36,0.00010882,2]
[346625324,1735129843436,-500.0,0.00010882,2]
[346625327,1735129843446,-500.0,0.00010883,2]
[346625328,1735129843455,-500.0,0.00010883,2]
[346625330,1735129843464,-500.0,0.00010883,2]
[346625332,1735129843474,-500.0,0.00010883,2]
[346625334,1735129843483,-500.0,0.00010883,2]
[346625335,1735129843493,-500.0,0.00010883,2]
[346625336,1735129843504,-500.0,0.00010883,2]
[346625338,1735129843513,-542.65,0.00010883,2]
[346625340,1735129843522,-500.0,0.00010883,2]
[346625341,1735129843531,-716.81,0.00010883,2]
[346625342,1735129843541,-500.0,0.00010883,2]
[346625343,1735129843552,-500.0,0.00010883,2]
[346625344,1735129843561,-500.0,0.00010883,2]
[346625345,1735129843572,-619.95,0.00010884,2]
[346625346,1735129843581,-4970.23202434,0.00010901,2]
[346625347,1735129843592,-294.954,0.00011147,2]
[346625348,1735129843602,-863.28,0.00011154,2]
[346625349,1735129843611,-500.0,0.00011154,2]
[346625350,1735129843620,-4268.84,0.00011155,2]
[346625351,1735129843630,-1652.94,0.00011155,2]
[346625352,1735129843640,-1692.25,0.00011155,2]
[346625353,1735129843649,-915.92,0.00011155,2]
[346625354,1735129843658,-829.21,0.00011155,2]
[346625355,1735129843667,-500.0,0.00011155,2]
[346625356,1735129843677,-500.0,0.00011155,2]
[346625357,1735129843686,-500.0,0.00011155,2]
[346625358,1735129843695,-492.07910164,0.00011155,2]
[346625359,1735129843704,-500.0,0.00011155,2]
[346625360,1735129843714,-1025.71,0.00011155,2]
[346625361,1735129843724,-500.0,0.00011155,2]
[346625362,1735129843733,-500.0,0.00011156,2]
[346625363,1735129843743,-500.0,0.00011156,2]
[346625364,1735129843752,-500.0,0.00011156,2]
[346625365,1735129843762,-568.27,0.00011156,2]
[346625366,1735129843771,-500.0,0.00011156,2]
[346625367,1735129843782,-151.0,0.00011156,2]
[346625368,1735129843791,-500.0,0.00011156,2]
[346625369,1735129843801,-151.0,0.00011156,2]
[346625370,1735129843810,-500.0,0.00011156,2]
[346625371,1735129843820,-152.147231,0.00011156,2]
[346625372,1735129843830,-500.0,0.00011156,2]
[346625373,1735129843840,-500.0,0.00011156,2]
[346625374,1735129843850,-500.0,0.00011156,2]
[346625375,1735129843859,-500.0,0.00011156,2]
[346625376,1735129843869,-404.325973,0.00011156,2]
[346625377,1735129843878,-404.325973,0.00011156,2]
[346625378,1735129843888,-500.0,0.00011156,2]
[346625379,1735129843897,-151.0,0.00011156,2]
[346625380,1735129843907,-500.0,0.00011156,2]
[346625381,1735129843916,-151.0,0.00011156,2]
[346625382,1735129843925,-153.810594,0.00011156,2]
[346625383,1735129843934,-500.0,0.00011156,2]
[346625384,1735129843943,-682.3,0.00011156,2]
[346625385,1735129843953,-500.0,0.00011156,2]
[346625386,1735129843962,-178.290392,0.00011156,2]
[346625387,1735129843972,-178.290392,0.00011156,2]
[346625388,1735129843981,-500.0,0.00011156,2]
[346625389,1735129843991,-178.290392,0.00011156,2]
[346625390,1735129844000,-178.290392,0.00011156,2]
[346625391,1735129844012,-763.53,0.00011156,2]
[346625392,1735129844022,-500.0,0.00011156,2]
[346625393,1735129844031,-3731.85,0.00011156,2]
[346625394,1735129844042,-565.45,0.00011156,2]
[346625395,1735129844051,-151.0,0.00011156,2]
[346625396,1735129844060,-500.0,0.00011156,2]
[346625397,1735129844069,-151.0,0.00011156,2]
[346625398,1735129844079,-151.0,0.00011156,2]
[346625399,1735129844089,-517.25,0.00011156,2]
[346625400,1735129844098,-151.0,0.00011156,2]
[346625401,1735129844107,-151.0,0.00011156,2]
[346625402,1735129844116,-500.0,0.00011156,2]
[346625403,1735129844126,-151.0,0.00011156,2]
[346625404,1735129844135,-151.0,0.00011156,2]
[346625405,1735129844145,-500.0,0.00011156,2]
[346625406,1735129844155,-500.0,0.00011156,2]
[346625407,1735129844164,-151.0,0.00011156,2]
[346625408,1735129844174,-500.0,0.00011156,2]
[346625409,1735129844184,-151.0,0.00011156,2]
[346625410,1735129844193,-151.0,0.00011156,2]
[346625411,1735129844202,-151.0,0.00011156,2]
[346625412,1735129844211,-153.722438,0.00011156,2]
[346625413,1735129844221,-500.0,0.00011156,2]
[346625414,1735129844231,-264.411441,0.00011156,2]
[346625415,1735129844240,-264.411441,0.00011156,2]
[346625416,1735129844249,-500.0,0.00011156,2]
[346625417,1735129844261,-500.0,0.00011156,2]
[346625418,1735129844271,-14736.03,0.00011156,2]
[346625419,1735129844280,-3976.36,0.00011156,2]
[346625420,1735129844290,-500.0,0.00011156,2]
[346625421,1735129844299,-358.942033,0.00011156,2]
[346625422,1735129844309,-183.11745939,0.00011156,2]
[346625423,1735129844319,-19038.55173171,0.00011157,2]
[346625424,1735129844328,-151.0,0.00011157,2]
[346625425,1735129844338,-500.0,0.00011157,2]
[346625426,1735129844355,-151.0,0.00011157,2]
[346625427,1735129844365,-500.0,0.00011157,2]
[346625428,1735129844375,-500.0,0.00011157,2]
[346625429,1735129844385,-500.0,0.00011157,2]
[346625430,1735129844395,-500.0,0.00011157,2]
[346625431,1735129844404,-154.184414,0.00011157,2]
[346625432,1735129844414,-500.0,0.00011157,2]
[346625433,1735129844424,-295.072319,0.00011157,2]
[346625434,1735129844433,-151.0,0.00011157,2]
[346625435,1735129844443,-151.0,0.00011157,2]
[346625436,1735129844452,-500.0,0.00011157,2]
[346625437,1735129844462,-542.65,0.00011157,2]
[346625438,1735129844472,-151.0,0.00011157,2]
[346625439,1735129844481,-151.0,0.00011157,2]
[346625440,1735129844491,-500.0,0.00011157,2]
[346625441,1735129844500,-716.81,0.00011157,2]
[346625442,1735129844510,-290.642638,0.00011157,2]
[346625443,1735129844520,-151.0,0.00011157,2]
[346625444,1735129844530,-279.618874,0.00011157,2]
[346625445,1735129844540,-500.0,0.00011157,2]
[346625446,1735129844551,-404.325973,0.00011157,2]
[346625447,1735129844566,-404.325973,0.00011157,2]
[346625448,1735129844576,-404.325973,0.00011157,2]
[346625449,1735129844586,-404.325973,0.00011157,2]
[346625450,1735129844597,-151.0,0.00011157,2]
[346625451,1735129844606,-276.435756,0.00011157,2]
[346625452,1735129844616,-178.290392,0.00011157,2]
[346625453,1735129844625,-178.290392,0.00011157,2]
[346625454,1735129844635,-151.0,0.00011157,2]
[346625455,1735129844645,-151.0,0.00011157,2]
[346625456,1735129844655,-151.0,0.00011157,2]
[346625457,1735129844664,-151.0,0.00011157,2]
[346625458,1735129844674,-500.0,0.00011157,2]
[346625459,1735129844684,-151.0,0.00011157,2]
[346625460,1735129844694,-151.0,0.00011157,2]
[346625461,1735129844703,-300.485086,0.00011157,2]
[346625462,1735129844713,-500.0,0.00011157,2]
[346625463,1735129844724,-151.0,0.00011157,2]
[346625464,1735129844733,-151.0,0.00011157,2]
[346625465,1735129844744,-151.0,0.00011157,2]
[346625466,1735129844754,-264.411441,0.00011157,2]
[346625467,1735129844763,-264.411441,0.00011157,2]
[346625468,1735129844773,-358.942033,0.00011157,2]
[346625469,1735129844782,-619.95,0.00011158,2]
[346625470,1735129844791,-178.290392,0.00011158,2]
[346625471,1735129844801,-178.290392,0.00011158,2]
[346625472,1735129844936,-166.02,0.00011187,2]
[346625473,1735129844947,-1109.4253949,0.00011218,2]
[346625474,1735129844957,-241781.15075974,0.00011218,2]
[346625475,1735129844967,-250.0,0.00011218,2]
[346625476,1735129844976,-404.325973,0.00011218,2]
[346625477,1735129844986,-404.325973,0.00011218,2]
[346625478,1735129844995,-178.290392,0.00011218,2]
[346625479,1735129845007,-178.290392,0.00011218,2]
[346625480,1735129845016,-151.0,0.00011218,2]
[346625481,1735129845025,-151.0,0.00011218,2]
[346625482,1735129845035,-151.0,0.00011218,2]
[346625483,1735129845043,-151.0,0.00011218,2]
[346625484,1735129845053,-151.0,0.00011218,2]
[346625485,1735129845062,-151.0,0.00011218,2]
[346625486,1735129845071,-151.0,0.00011218,2]
[346625487,1735129845082,-151.0,0.00011218,2]
[346625488,1735129845091,-151.0,0.00011218,2]
[346625489,1735129845100,-151.0,0.00011218,2]
[346625490,1735129845109,-151.0,0.00011218,2]
[346625491,1735129845119,-151.0,0.00011218,2]
[346625492,1735129845127,-264.411441,0.00011218,2]
[346625493,1735129845137,-264.411441,0.00011218,2]
[346625494,1735129845146,-264.411441,0.00011218,2]
[346625495,1735129845155,-264.411441,0.00011218,2]
[346625496,1735129845164,-358.942033,0.00011218,2]
[346625497,1735129845173,-153.0,0.000113,2]
[346625498,1735129845183,-212.7413024,0.000113,2]
[346625499,1735129845192,-10573.55132803,0.00011368,2]
[346625500,1735129845202,-703.924125,0.000114,2]
[346625501,1735129845211,-408.8045395,0.000114,2]
[346625502,1735129845220,-362.5952416,0.000114,2]
[346625503,1735129845230,-863.28,0.00011428,2]
[346625504,1735129845240,-500.0,0.00011428,2]
[346625505,1735129845249,-4268.84,0.00011429,2]
[346625506,1735129845261,-1652.94,0.00011429,2]
[346625507,1735129845271,-1692.25,0.00011429,2]
[346625508,1735129845281,-915.92,0.00011429,2]
[346625509,1735129845291,-829.21,0.00011429,2]
[346625510,1735129845300,-500.0,0.00011429,2]
[346625511,1735129845310,-500.0,0.00011429,2]